[Event "Titled Tuesday Blitz August 15 Early 2023"]
[White "Benedetti, Julio"]
[Black "Nakamura, Hikaru"]
[WhiteFideId "172545"]
[BlackFideId "2016192"]
[WhiteElo "2510"]
[BlackElo "3271"]
[Result "1-0"]
[Round "1"]
[TimeControl "180+1"]
[Date "2023.08.15"]
[WhiteClock "0:00:07"]
[BlackClock "0:00:33"]
[Board "1"]

1. e4 {[%clk 0:03:00]}  c6 {[%clk 0:02:46]} 2. Nf3 {[%clk 0:03:00]}  d5 {[%clk 0:02:43]} 3. exd5 {[%clk 0:03:01]}  Qxd5 {[%clk 0:02:39]} 4. Nc3 {[%clk 0:03:00]}  Qa5 {[%clk 0:02:36]} 5. d4 {[%clk 0:02:58]}  Nf6 {[%clk 0:02:36]} 6. Bc4 {[%clk 0:02:53]}  Bg4 {[%clk 0:02:32]} 7. h3 {[%clk 0:02:52]}  Bh5 {[%clk 0:02:33]} 8. g4 {[%clk 0:02:51]}  Bg6 {[%clk 0:02:33]} 9. Bd2 {[%clk 0:02:48]}  e6 {[%clk 0:02:31]} 10. Qe2 {[%clk 0:02:45]}  Bb4 {[%clk 0:02:30]} 11. a3 {[%clk 0:02:40]}  Nbd7 {[%clk 0:02:30]} 12. O-O-O {[%clk 0:02:24]}  Bxc3 {[%clk 0:02:26]} 13. Bxc3 {[%clk 0:02:23]}  Qc7 {[%clk 0:02:25]} 14. Ne5 {[%clk 0:02:11]}  O-O-O {[%clk 0:02:12]} 15. Rhe1 {[%clk 0:01:50]}  Nxe5 {[%clk 0:01:57]} 16. dxe5 {[%clk 0:01:43]}  Ne4 {[%clk 0:01:56]} 17. Qe3 {[%clk 0:01:36]}  Qb6 {[%clk 0:01:52]} 18. Bd4 {[%clk 0:01:30]}  c5 {[%clk 0:01:52]} 19. Bc3 {[%clk 0:01:30]}  Qc6 {[%clk 0:01:48]} 20. f3 {[%clk 0:01:23]}  Nxc3 {[%clk 0:01:45]} 21. Qxc3 {[%clk 0:01:23]}  Kb8 {[%clk 0:01:35]} 22. Re2 {[%clk 0:01:08]}  Rxd1+ {[%clk 0:01:16]} 23. Kxd1 {[%clk 0:01:09]}  b5 {[%clk 0:01:16]} 24. Qb3 {[%clk 0:00:51]}  a6 {[%clk 0:01:10]} 25. a4 {[%clk 0:00:51]}  b4 {[%clk 0:01:05]} 26. Rd2 {[%clk 0:00:48]}  Qc7 {[%clk 0:01:03]} 27. Bxa6 {[%clk 0:00:29]}  Rd8 {[%clk 0:01:03]} 28. Rxd8+ {[%clk 0:00:28]}  Qxd8+ {[%clk 0:01:04]} 29. Ke2 {[%clk 0:00:24]}  Qd4 {[%clk 0:01:03]} 30. Qe3 {[%clk 0:00:22]}  Qxb2 {[%clk 0:01:01]} 31. Qxc5 {[%clk 0:00:22]}  Qxc2+ {[%clk 0:01:01]} 32. Qxc2 {[%clk 0:00:22]}  Bxc2 {[%clk 0:01:02]} 33. Bb5 {[%clk 0:00:18]}  Bb3 {[%clk 0:01:00]} 34. Ke3 {[%clk 0:00:16]}  g5 {[%clk 0:00:58]} 35. f4 {[%clk 0:00:13]}  gxf4+ {[%clk 0:00:57]} 36. Kxf4 {[%clk 0:00:14]}  Bc2 {[%clk 0:00:56]} 37. Ke3 {[%clk 0:00:12]}  Kc7 {[%clk 0:00:52]} 38. a5 {[%clk 0:00:10]}  Bb3 {[%clk 0:00:52]} 39. Be8 {[%clk 0:00:10]}  Kb7 {[%clk 0:00:49]} 40. Kd4 {[%clk 0:00:08]}  Ka6 {[%clk 0:00:49]} 41. Bxf7 {[%clk 0:00:06]}  Kxa5 {[%clk 0:00:50]} 42. g5 {[%clk 0:00:06]}  Bd5 {[%clk 0:00:43]} 43. g6 {[%clk 0:00:06]}  hxg6 {[%clk 0:00:43]} 44. Bxg6 {[%clk 0:00:07]}  Ka4 {[%clk 0:00:43]} 45. h4 {[%clk 0:00:06]}  Bf3 {[%clk 0:00:38]} 46. h5 {[%clk 0:00:07]}  Bxh5 {[%clk 0:00:38]} 47. Bxh5 {[%clk 0:00:08]}  b3 {[%clk 0:00:33]} 48. Kc5 {[%clk 0:00:07]} 1-0


[Site "https://www.chess.com"]

[Event "Titled Tuesday Blitz August 15 Early 2023"]
[White "Naroditsky, Daniel"]
[Black "Hristodoulou, Panagiotis"]
[WhiteFideId "2026961"]
[BlackFideId "4214340"]
[WhiteElo "3196"]
[BlackElo "2506"]
[Result "1/2-1/2"]
[Round "1"]
[TimeControl "180+1"]
[Date "2023.08.15"]
[WhiteClock "0:01:42"]
[BlackClock "0:00:15"]
[Board "2"]

1. e4 {[%clk 0:03:00]}  e5 {[%clk 0:02:59]} 2. Nf3 {[%clk 0:03:01]}  Nc6 {[%clk 0:03:00]} 3. Nc3 {[%clk 0:02:58]}  Nf6 {[%clk 0:02:59]} 4. d4 {[%clk 0:02:56]}  exd4 {[%clk 0:02:59]} 5. Nd5 {[%clk 0:02:55]}  Nb4 {[%clk 0:02:57]} 6. Nxf6+ {[%clk 0:02:54]}  Qxf6 {[%clk 0:02:57]} 7. a3 {[%clk 0:02:55]}  Nc6 {[%clk 0:02:55]} 8. Bd3 {[%clk 0:02:55]}  Bd6 {[%clk 0:02:47]} 9. O-O {[%clk 0:02:49]}  O-O {[%clk 0:02:46]} 10. Bg5 {[%clk 0:02:42]}  Qe6 {[%clk 0:02:42]} 11. Re1 {[%clk 0:02:42]}  Be5 {[%clk 0:02:39]} 12. Nxe5 {[%clk 0:02:26]}  Nxe5 {[%clk 0:02:38]} 13. f4 {[%clk 0:02:27]}  Nxd3 {[%clk 0:02:21]} 14. Qxd3 {[%clk 0:02:28]}  d5 {[%clk 0:02:02]} 15. Qxd4 {[%clk 0:02:18]}  dxe4 {[%clk 0:02:01]} 16. Rxe4 {[%clk 0:02:19]}  Qb6 {[%clk 0:01:57]} 17. Rae1 {[%clk 0:02:14]}  Bf5 {[%clk 0:01:52]} 18. Qxb6 {[%clk 0:02:13]}  axb6 {[%clk 0:01:52]} 19. Rc4 {[%clk 0:02:01]}  f6 {[%clk 0:01:45]} 20. Bh4 {[%clk 0:02:02]}  c5 {[%clk 0:01:38]} 21. b4 {[%clk 0:01:57]}  Rxa3 {[%clk 0:01:31]} 22. bxc5 {[%clk 0:01:58]}  Rc8 {[%clk 0:01:30]} 23. Bf2 {[%clk 0:01:49]}  bxc5 {[%clk 0:01:24]} 24. Rxc5 {[%clk 0:01:45]}  Rxc5 {[%clk 0:01:21]} 25. Bxc5 {[%clk 0:01:46]}  Rc3 {[%clk 0:01:20]} 26. Re8+ {[%clk 0:01:33]}  Kf7 {[%clk 0:01:19]} 27. Re7+ {[%clk 0:01:34]}  Kg6 {[%clk 0:01:15]} 28. Bd4 {[%clk 0:01:33]}  Rxc2 {[%clk 0:01:08]} 29. Rxb7 {[%clk 0:01:33]}  Rxg2+ {[%clk 0:00:58]} 30. Kxg2 {[%clk 0:01:33]}  Be4+ {[%clk 0:00:59]} 31. Kg3 {[%clk 0:01:34]}  Bxb7 {[%clk 0:00:59]} 32. Bc5 {[%clk 0:01:34]}  Kf5 {[%clk 0:00:58]} 33. h4 {[%clk 0:01:35]}  h5 {[%clk 0:00:33]} 34. Bf8 {[%clk 0:01:34]}  g6 {[%clk 0:00:23]} 35. Be7 {[%clk 0:01:34]}  Bd5 {[%clk 0:00:17]} 36. Bd8 {[%clk 0:01:34]}  Bc6 {[%clk 0:00:10]} 37. Be7 {[%clk 0:01:34]}  Bd5 {[%clk 0:00:09]} 38. Bd8 {[%clk 0:01:35]}  Bc6 {[%clk 0:00:09]} 39. Kf2 {[%clk 0:01:36]}  Bd5 {[%clk 0:00:09]} 40. Ke3 {[%clk 0:01:36]}  Kg4 {[%clk 0:00:10]} 41. Bxf6 {[%clk 0:01:36]}  Kf5 {[%clk 0:00:10]} 42. Bg5 {[%clk 0:01:36]}  Be4 {[%clk 0:00:11]} 43. Kd4 {[%clk 0:01:37]}  Bf3 {[%clk 0:00:11]} 44. Kc5 {[%clk 0:01:38]}  Bg4 {[%clk 0:00:12]} 45. Kd4 {[%clk 0:01:38]}  Bf3 {[%clk 0:00:12]} 46. Ke3 {[%clk 0:01:39]}  Bg4 {[%clk 0:00:13]} 47. Kf2 {[%clk 0:01:39]}  Bd1 {[%clk 0:00:13]} 48. Ke1 {[%clk 0:01:40]}  Bb3 {[%clk 0:00:14]} 49. Kd2 {[%clk 0:01:40]}  Bd5 {[%clk 0:00:14]} 50. Ke3 {[%clk 0:01:41]}  Be4 {[%clk 0:00:14]} 51. Kd4 {[%clk 0:01:42]}  Bf3 {[%clk 0:00:15]} 1/2-1/2


[Site "https://www.chess.com"]

[Event "Titled Tuesday Blitz August 15 Early 2023"]
[White "Fedoseev, Vladimir"]
[Black "Kovalevsky, Stanislav"]
[WhiteFideId "24130737"]
[BlackFideId "13508598"]
[WhiteElo "3107"]
[BlackElo "2502"]
[Result "1/2-1/2"]
[Round "1"]
[TimeControl "180+1"]
[Date "2023.08.15"]
[WhiteClock "0:00:06"]
[BlackClock "0:00:08"]
[Board "6"]

1. Nf3 {[%clk 0:02:52]}  d5 {[%clk 0:03:00]} 2. g3 {[%clk 0:02:51]}  Nf6 {[%clk 0:03:00]} 3. Bg2 {[%clk 0:02:50]}  c5 {[%clk 0:02:59]} 4. O-O {[%clk 0:02:50]}  Nc6 {[%clk 0:02:59]} 5. d4 {[%clk 0:02:51]}  e6 {[%clk 0:02:59]} 6. c4 {[%clk 0:02:50]}  dxc4 {[%clk 0:02:56]} 7. Qa4 {[%clk 0:02:49]}  Bd7 {[%clk 0:02:41]} 8. dxc5 {[%clk 0:02:49]}  Bxc5 {[%clk 0:02:37]} 9. Qxc4 {[%clk 0:02:49]}  Qb6 {[%clk 0:02:29]} 10. Nc3 {[%clk 0:02:47]}  Qb4 {[%clk 0:02:19]} 11. Qd3 {[%clk 0:02:37]}  Rd8 {[%clk 0:02:06]} 12. a3 {[%clk 0:02:30]}  Qg4 {[%clk 0:02:02]} 13. h3 {[%clk 0:02:23]}  Qg6 {[%clk 0:02:01]} 14. Qxg6 {[%clk 0:02:14]}  hxg6 {[%clk 0:02:00]} 15. Bf4 {[%clk 0:02:15]}  e5 {[%clk 0:01:51]} 16. Nxe5 {[%clk 0:02:13]}  Nxe5 {[%clk 0:01:48]} 17. Bxe5 {[%clk 0:02:14]}  Bxh3 {[%clk 0:01:48]} 18. Bxf6 {[%clk 0:02:08]}  gxf6 {[%clk 0:01:47]} 19. Rfd1 {[%clk 0:02:09]}  Bxg2 {[%clk 0:01:44]} 20. Kxg2 {[%clk 0:02:08]}  Ke7 {[%clk 0:01:39]} 21. Nd5+ {[%clk 0:02:00]}  Ke6 {[%clk 0:01:38]} 22. Nf4+ {[%clk 0:01:57]}  Kf5 {[%clk 0:01:33]} 23. Kf3 {[%clk 0:01:47]}  Bb6 {[%clk 0:01:17]} 24. b4 {[%clk 0:01:39]}  Rh2 {[%clk 0:01:07]} 25. g4+ {[%clk 0:01:19]}  Kg5 {[%clk 0:01:01]} 26. e3 {[%clk 0:01:14]}  f5 {[%clk 0:00:51]} 27. Rxd8 {[%clk 0:00:48]}  Bxd8 {[%clk 0:00:46]} 28. Rd1 {[%clk 0:00:48]}  Bc7 {[%clk 0:00:26]} 29. gxf5 {[%clk 0:00:29]}  Bxf4 {[%clk 0:00:22]} 30. fxg6 {[%clk 0:00:23]}  Kxg6 {[%clk 0:00:10]} 31. exf4 {[%clk 0:00:13]}  Rh3+ {[%clk 0:00:11]} 32. Ke4 {[%clk 0:00:13]}  Rxa3 {[%clk 0:00:11]} 33. Rd6+ {[%clk 0:00:11]}  Kg7 {[%clk 0:00:11]} 34. Rd7 {[%clk 0:00:11]}  b6 {[%clk 0:00:10]} 35. b5 {[%clk 0:00:06]}  Ra5 {[%clk 0:00:08]} 36. Rd5 {[%clk 0:00:03]}  Kf6 {[%clk 0:00:09]} 37. Rf5+ {[%clk 0:00:04]}  Ke6 {[%clk 0:00:08]} 38. Re5+ {[%clk 0:00:04]}  Kf6 {[%clk 0:00:09]} 39. Rd5 {[%clk 0:00:05]}  Ra4+ {[%clk 0:00:08]} 40. Kf3 {[%clk 0:00:06]}  Rb4 {[%clk 0:00:07]} 41. Kg4 {[%clk 0:00:06]}  Ke6 {[%clk 0:00:07]} 42. Re5+ {[%clk 0:00:06]}  Kf6 {[%clk 0:00:08]} 43. Rf5+ {[%clk 0:00:07]}  Ke6 {[%clk 0:00:08]} 44. Re5+ {[%clk 0:00:07]}  Kf6 {[%clk 0:00:08]} 45. Rh5 {[%clk 0:00:08]}  Ke6 {[%clk 0:00:07]} 46. Rh6+ {[%clk 0:00:07]}  Ke7 {[%clk 0:00:08]} 47. Rh5 {[%clk 0:00:05]}  Ke6 {[%clk 0:00:08]} 48. Re5+ {[%clk 0:00:06]} 1/2-1/2


[Site "https://www.chess.com"]

[Event "Titled Tuesday Blitz August 15 Early 2023"]
[White "Ansh M Shah"]
[Black "Lazavik, Denis"]
[WhiteFideId "25033379"]
[BlackFideId "13515110"]
[WhiteElo "2500"]
[BlackElo "3058"]
[Result "1-0"]
[Round "1"]
[TimeControl "180+1"]
[Date "2023.08.15"]
[WhiteClock "0:00:09"]
[BlackClock "0:00:04"]
[Board "11"]

1. d4 {[%clk 0:02:39]}  f5 {[%clk 0:02:59]} 2. c4 {[%clk 0:02:40]}  Nf6 {[%clk 0:02:59]} 3. g3 {[%clk 0:02:40]}  g6 {[%clk 0:02:59]} 4. Bg2 {[%clk 0:02:41]}  Bg7 {[%clk 0:03:00]} 5. Nf3 {[%clk 0:02:42]}  O-O {[%clk 0:03:00]} 6. O-O {[%clk 0:02:43]}  d6 {[%clk 0:03:01]} 7. Nc3 {[%clk 0:02:44]}  c6 {[%clk 0:03:01]} 8. b3 {[%clk 0:02:44]}  Na6 {[%clk 0:02:59]} 9. Bb2 {[%clk 0:02:44]}  Qc7 {[%clk 0:02:40]} 10. Rc1 {[%clk 0:02:35]}  e5 {[%clk 0:02:34]} 11. Nb5 {[%clk 0:02:13]}  Qe7 {[%clk 0:02:16]} 12. dxe5 {[%clk 0:02:00]}  dxe5 {[%clk 0:02:16]} 13. Qd6 {[%clk 0:02:00]}  Qxd6 {[%clk 0:02:13]} 14. Nxd6 {[%clk 0:02:01]}  e4 {[%clk 0:02:13]} 15. Ng5 {[%clk 0:01:54]}  Nc7 {[%clk 0:01:32]} 16. Rcd1 {[%clk 0:01:39]}  h6 {[%clk 0:01:19]} 17. Nh3 {[%clk 0:01:05]}  g5 {[%clk 0:01:17]} 18. f4 {[%clk 0:00:50]}  g4 {[%clk 0:01:15]} 19. Nf2 {[%clk 0:00:50]}  Nce8 {[%clk 0:01:00]} 20. Nxc8 {[%clk 0:00:44]}  Rxc8 {[%clk 0:00:59]} 21. e3 {[%clk 0:00:41]}  Rf7 {[%clk 0:00:57]} 22. Rd2 {[%clk 0:00:41]}  Nd7 {[%clk 0:00:57]} 23. Bxg7 {[%clk 0:00:40]}  Kxg7 {[%clk 0:00:48]} 24. Rfd1 {[%clk 0:00:41]}  Nef6 {[%clk 0:00:48]} 25. Bf1 {[%clk 0:00:39]}  Kf8 {[%clk 0:00:46]} 26. Rd6 {[%clk 0:00:36]}  Ke7 {[%clk 0:00:45]} 27. R6d4 {[%clk 0:00:29]}  Nc5 {[%clk 0:00:43]} 28. b4 {[%clk 0:00:29]}  Ne6 {[%clk 0:00:43]} 29. Rd6 {[%clk 0:00:26]}  c5 {[%clk 0:00:35]} 30. b5 {[%clk 0:00:26]}  Rff8 {[%clk 0:00:28]} 31. R1d2 {[%clk 0:00:23]}  h5 {[%clk 0:00:11]} 32. Nd1 {[%clk 0:00:22]}  Rfd8 {[%clk 0:00:07]} 33. Rxd8 {[%clk 0:00:20]}  Nxd8 {[%clk 0:00:08]} 34. Nc3 {[%clk 0:00:20]}  Nf7 {[%clk 0:00:08]} 35. Kf2 {[%clk 0:00:18]}  Nd6 {[%clk 0:00:08]} 36. a4 {[%clk 0:00:17]}  Rh8 {[%clk 0:00:06]} 37. a5 {[%clk 0:00:13]}  h4 {[%clk 0:00:06]} 38. Kg2 {[%clk 0:00:12]}  hxg3 {[%clk 0:00:06]} 39. hxg3 {[%clk 0:00:13]}  Rc8 {[%clk 0:00:06]} 40. Be2 {[%clk 0:00:11]}  Ke6 {[%clk 0:00:06]} 41. Kf2 {[%clk 0:00:10]}  Rh8 {[%clk 0:00:06]} 42. Kg2 {[%clk 0:00:11]}  Nc8 {[%clk 0:00:04]} 43. Bf1 {[%clk 0:00:10]}  Ne7 {[%clk 0:00:04]} 44. Be2 {[%clk 0:00:10]}  Rc8 {[%clk 0:00:05]} 45. Bf1 {[%clk 0:00:09]}  Nd7 {[%clk 0:00:05]} 46. Be2 {[%clk 0:00:09]}  b6 {[%clk 0:00:06]} 47. a6 {[%clk 0:00:08]}  Nf6 {[%clk 0:00:06]} 48. Bf1 {[%clk 0:00:07]}  Ne8 {[%clk 0:00:07]} 49. Be2 {[%clk 0:00:08]}  Nd6 {[%clk 0:00:07]} 50. Bf1 {[%clk 0:00:07]}  Rh8 {[%clk 0:00:07]} 51. Be2 {[%clk 0:00:07]}  Ng8 {[%clk 0:00:08]} 52. Bf1 {[%clk 0:00:08]}  Nf6 {[%clk 0:00:09]} 53. Be2 {[%clk 0:00:08]}  Rh7 {[%clk 0:00:08]} 54. Bf1 {[%clk 0:00:08]}  Rh3 {[%clk 0:00:08]} 55. Be2 {[%clk 0:00:08]}  Nh5 {[%clk 0:00:08]} 56. Nd5 {[%clk 0:00:07]}  Rxg3+ {[%clk 0:00:08]} 57. Kf2 {[%clk 0:00:07]}  Nc8 {[%clk 0:00:04]} 58. Nc7+ {[%clk 0:00:07]}  Ke7 {[%clk 0:00:05]} 59. Nd5+ {[%clk 0:00:07]}  Kf7 {[%clk 0:00:05]} 60. Nc7 {[%clk 0:00:07]}  Rh3 {[%clk 0:00:05]} 61. Rd7+ {[%clk 0:00:08]}  Kg6 {[%clk 0:00:04]} 62. Rd6+ {[%clk 0:00:08]}  Kg7 {[%clk 0:00:03]} 63. Rd7+ {[%clk 0:00:08]}  Kf6 {[%clk 0:00:03]} 64. Rd8 {[%clk 0:00:08]}  Ne7 {[%clk 0:00:03]} 65. Ne8+ {[%clk 0:00:08]}  Kf7 {[%clk 0:00:04]} 66. Nc7 {[%clk 0:00:09]}  Rh2+ {[%clk 0:00:04]} 67. Ke1 {[%clk 0:00:08]}  Ng3 {[%clk 0:00:04]} 68. Bf1 {[%clk 0:00:07]}  Rh1 {[%clk 0:00:05]} 69. Kf2 {[%clk 0:00:08]}  Nxf1 {[%clk 0:00:05]} 70. Kg2 {[%clk 0:00:08]}  Rh3 {[%clk 0:00:05]} 71. Kxf1 {[%clk 0:00:08]}  Rxe3 {[%clk 0:00:06]} 72. Rd7 {[%clk 0:00:09]}  Rd3 {[%clk 0:00:04]} 73. Nd5 {[%clk 0:00:08]}  Rxd5 {[%clk 0:00:03]} 74. cxd5 {[%clk 0:00:09]}  Kf6 {[%clk 0:00:03]} 75. Rxa7 {[%clk 0:00:09]}  Nxd5 {[%clk 0:00:04]} 76. Rd7 {[%clk 0:00:09]}  Nxf4 {[%clk 0:00:03]} 77. a7 {[%clk 0:00:10]}  g3 {[%clk 0:00:04]} 78. a8=Q {[%clk 0:00:10]}  Ne6 {[%clk 0:00:04]} 79. Qe8 {[%clk 0:00:09]}  Ke5 {[%clk 0:00:04]} 80. Re7 {[%clk 0:00:09]} 1-0


[Site "https://www.chess.com"]

[Event "Titled Tuesday Blitz August 15 Early 2023"]
[White "Grischuk, Alexander"]
[Black "Martinez Reyes, Pedro Ramon"]
[WhiteFideId "4126025"]
[BlackFideId "3901807"]
[WhiteElo "3058"]
[BlackElo "2500"]
[Result "1-0"]
[Round "1"]
[TimeControl "180+1"]
[Date "2023.08.15"]
[WhiteClock "0:00:57"]
[BlackClock "0:00:08"]
[Board "12"]

1. e4 {[%clk 0:02:57]}  e6 {[%clk 0:03:00]} 2. d4 {[%clk 0:02:57]}  d5 {[%clk 0:03:00]} 3. e5 {[%clk 0:02:57]}  c5 {[%clk 0:03:00]} 4. c3 {[%clk 0:02:58]}  Be7 {[%clk 0:03:00]} 5. Qg4 {[%clk 0:02:53]}  Bf8 {[%clk 0:02:58]} 6. Nf3 {[%clk 0:02:52]}  Ne7 {[%clk 0:02:56]} 7. Bd3 {[%clk 0:02:52]}  cxd4 {[%clk 0:02:53]} 8. cxd4 {[%clk 0:02:52]}  h6 {[%clk 0:02:53]} 9. Nc3 {[%clk 0:02:51]}  Nbc6 {[%clk 0:02:48]} 10. O-O {[%clk 0:02:48]}  Bd7 {[%clk 0:02:46]} 11. h4 {[%clk 0:02:45]}  a6 {[%clk 0:02:45]} 12. h5 {[%clk 0:02:45]}  Na5 {[%clk 0:02:32]} 13. Nh4 {[%clk 0:02:26]}  Qb6 {[%clk 0:02:25]} 14. Rb1 {[%clk 0:02:25]}  Rc8 {[%clk 0:02:23]} 15. Be3 {[%clk 0:01:55]}  Nc4 {[%clk 0:02:03]} 16. Qe2 {[%clk 0:01:48]}  Nc6 {[%clk 0:01:56]} 17. Bxc4 {[%clk 0:01:47]}  dxc4 {[%clk 0:01:52]} 18. d5 {[%clk 0:01:41]}  Nd4 {[%clk 0:01:52]} 19. Qg4 {[%clk 0:01:35]}  exd5 {[%clk 0:01:30]} 20. Qxd4 {[%clk 0:01:34]}  Bc5 {[%clk 0:01:31]} 21. Nxd5 {[%clk 0:01:21]}  Qd8 {[%clk 0:01:23]} 22. Qf4 {[%clk 0:01:19]}  O-O {[%clk 0:00:44]} 23. Rbd1 {[%clk 0:01:09]}  Qe8 {[%clk 0:00:27]} 24. Nf6+ {[%clk 0:00:58]}  gxf6 {[%clk 0:00:26]} 25. exf6 {[%clk 0:00:59]}  Bxe3 {[%clk 0:00:16]} 26. fxe3 {[%clk 0:01:00]}  Kh7 {[%clk 0:00:15]} 27. Rxd7 {[%clk 0:00:57]}  Qxd7 {[%clk 0:00:08]} 28. Nf5 {[%clk 0:00:57]} 1-0


[Site "https://www.chess.com"]

[Event "Titled Tuesday Blitz August 15 Early 2023"]
[White "Berezin, Viktor"]
[Black "Duda, Jan-Krzysztof"]
[WhiteFideId "14107872"]
[BlackFideId "1170546"]
[WhiteElo "2500"]
[BlackElo "3045"]
[Result "0-1"]
[Round "1"]
[TimeControl "180+1"]
[Date "2023.08.15"]
[WhiteClock "0:00:07"]
[BlackClock "0:00:08"]
[Board "13"]

1. d4 {[%clk 0:02:58]}  f5 {[%clk 0:02:58]} 2. g3 {[%clk 0:02:56]}  Nf6 {[%clk 0:02:54]} 3. Bg2 {[%clk 0:02:55]}  e6 {[%clk 0:02:54]} 4. Nf3 {[%clk 0:02:54]}  d5 {[%clk 0:02:54]} 5. O-O {[%clk 0:02:54]}  Bd6 {[%clk 0:02:55]} 6. c4 {[%clk 0:02:55]}  O-O {[%clk 0:02:55]} 7. b3 {[%clk 0:02:55]}  b6 {[%clk 0:02:42]} 8. Ba3 {[%clk 0:02:53]}  Bb7 {[%clk 0:02:41]} 9. Ne5 {[%clk 0:02:48]}  c5 {[%clk 0:02:39]} 10. Nd3 {[%clk 0:02:27]}  Qe7 {[%clk 0:02:34]} 11. cxd5 {[%clk 0:02:18]}  Bxd5 {[%clk 0:02:27]} 12. dxc5 {[%clk 0:02:09]}  bxc5 {[%clk 0:02:28]} 13. Nc3 {[%clk 0:02:00]}  Bxg2 {[%clk 0:02:27]} 14. Kxg2 {[%clk 0:02:01]}  Rd8 {[%clk 0:02:26]} 15. Qc2 {[%clk 0:01:49]}  Nc6 {[%clk 0:02:22]} 16. Nb5 {[%clk 0:01:42]}  Nd4 {[%clk 0:02:15]} 17. Nxd4 {[%clk 0:01:40]}  cxd4 {[%clk 0:02:16]} 18. Bxd6 {[%clk 0:01:38]}  Qxd6 {[%clk 0:02:15]} 19. Rac1 {[%clk 0:01:26]}  Ne4 {[%clk 0:02:13]} 20. Qc6 {[%clk 0:01:21]}  a5 {[%clk 0:02:07]} 21. Qxd6 {[%clk 0:01:16]}  Rxd6 {[%clk 0:02:08]} 22. Rc7 {[%clk 0:01:11]}  Nc3 {[%clk 0:02:06]} 23. Ne5 {[%clk 0:00:57]}  Nxe2 {[%clk 0:01:49]} 24. Re1 {[%clk 0:00:42]}  Nc3 {[%clk 0:01:50]} 25. Nc4 {[%clk 0:00:41]}  Rda6 {[%clk 0:01:49]} 26. Rd7 {[%clk 0:00:36]}  Nxa2 {[%clk 0:01:43]} 27. Nd6 {[%clk 0:00:23]}  R6a7 {[%clk 0:01:37]} 28. Nb7 {[%clk 0:00:23]}  Re8 {[%clk 0:01:32]} 29. Re5 {[%clk 0:00:14]}  Rb8 {[%clk 0:01:23]} 30. Rb5 {[%clk 0:00:14]}  Nc3 {[%clk 0:01:09]} 31. Rb6 {[%clk 0:00:14]}  h6 {[%clk 0:00:58]} 32. Kf1 {[%clk 0:00:12]}  Ne4 {[%clk 0:00:51]} 33. Ke1 {[%clk 0:00:11]}  Nf6 {[%clk 0:00:51]} 34. Rd8+ {[%clk 0:00:08]}  Rxd8 {[%clk 0:00:50]} 35. Nxd8 {[%clk 0:00:09]}  Ne4 {[%clk 0:00:22]} 36. Nxe6 {[%clk 0:00:09]}  Rd7 {[%clk 0:00:10]} 37. f3 {[%clk 0:00:09]}  Nc3 {[%clk 0:00:09]} 38. Rb8+ {[%clk 0:00:09]}  Kf7 {[%clk 0:00:09]} 39. Nc5 {[%clk 0:00:09]}  Re7+ {[%clk 0:00:07]} 40. Kd2 {[%clk 0:00:09]}  Re3 {[%clk 0:00:07]} 41. Rd8 {[%clk 0:00:07]}  Nb1+ {[%clk 0:00:04]} 42. Kc2 {[%clk 0:00:07]}  Rxf3 {[%clk 0:00:03]} 43. Rxd4 {[%clk 0:00:07]}  Rc3+ {[%clk 0:00:04]} 44. Kb2 {[%clk 0:00:07]}  Rxc5 {[%clk 0:00:05]} 45. Kxb1 {[%clk 0:00:07]}  Kf6 {[%clk 0:00:05]} 46. Rd7 {[%clk 0:00:07]}  g5 {[%clk 0:00:05]} 47. Kb2 {[%clk 0:00:07]}  f4 {[%clk 0:00:05]} 48. Ka3 {[%clk 0:00:07]}  f3 {[%clk 0:00:05]} 49. Rd8 {[%clk 0:00:07]}  Rf5 {[%clk 0:00:04]} 50. Rd1 {[%clk 0:00:07]}  f2 {[%clk 0:00:04]} 51. Rf1 {[%clk 0:00:08]}  g4 {[%clk 0:00:05]} 52. Ka4 {[%clk 0:00:08]}  Kg5 {[%clk 0:00:05]} 53. b4 {[%clk 0:00:09]}  axb4 {[%clk 0:00:06]} 54. Kxb4 {[%clk 0:00:09]}  h5 {[%clk 0:00:06]} 55. Kc4 {[%clk 0:00:10]}  Rf3 {[%clk 0:00:06]} 56. Kd4 {[%clk 0:00:10]}  Kf5 {[%clk 0:00:07]} 57. Kd5 {[%clk 0:00:10]}  Kf6 {[%clk 0:00:05]} 58. Ke4 {[%clk 0:00:10]}  Ke6 {[%clk 0:00:05]} 59. Kd4 {[%clk 0:00:11]}  Kd6 {[%clk 0:00:06]} 60. Ke4 {[%clk 0:00:11]}  Kc5 {[%clk 0:00:06]} 61. Rc1+ {[%clk 0:00:09]}  Kb4 {[%clk 0:00:06]} 62. Rb1+ {[%clk 0:00:10]}  Kc3 {[%clk 0:00:07]} 63. Rc1+ {[%clk 0:00:10]}  Kd2 {[%clk 0:00:07]} 64. Rf1 {[%clk 0:00:07]}  Ke2 {[%clk 0:00:08]} 0-1


[Site "https://www.chess.com"]